[Event "Fagernes Chess GM-Swiss 2024"]
[Site "Fagernes"]
[Date "2024.03.26"]
[Round "3.24"]
[White "Aniruddh Chatterjee"]
[Black "Tsolakidou, Stavroula"]
[Result "0-1"]
[ECO "E20"]
[WhiteElo "2182"]
[BlackElo "2424"]
[Annotator "TA"]
[PlyCount "46"]
[EventDate "2024.03.25"]
[EventType "swiss"]
[EventCountry "NOR"]
[SourceTitle "playchess.com"]
[Source "ChessBase"]
[SourceQuality "1"]
[TimeControl "40/6000+30:2400+30"]

{[%evp 10,46,28,15,31,-3,63,35,32,23,39,29,67,70,73,64,71,29,46,5,10,9,2,0,2,0,20,-82,-63,-175,-178,-166,-166,-208,-195,-665,-662,-625,-625]} 1. d4 {[%emt 0:02:43]} Nf6 {[%emt 0:00:09]} 2. c4 {[%emt 0:00:05]} e6 {[%emt 0:00:11]} 3. Nc3 {[%emt 0:00:18]} Bb4 {[%emt 0:00:12]} 4. f3 {[%emt 0:00:05]} d5 {[%emt 0:00:23]} 5. a3 {[%emt 0:00:15]} Bd6 {[%emt 0:00:20]} 6. e4 {[%emt 0:00:59]} c5 {[%emt 0:00:51]} 7. cxd5 {[%emt 0:05:46] Zielt auf e5 ab.} exd5 {[%emt 0:02:32]} (7... cxd4 $1 $11 8. Qa4+ (8. Qxd4 exd5 9. exd5 O-O $11) 8... Bd7 9. Qxd4 exd5) 8. Bg5 {[%emt 0:09:04]} cxd4 {[%emt 0:03:31] Weiß steht etwas besser.} 9. Nxd5 {[%emt 0:00:42]} Nc6 {[%emt 0:00:36]} 10. Bc4 {[%emt 0:07:19]} Be7 {[%emt 0:28:56]} 11. Nxe7 {[%emt 0:03:38]} Qxe7 {[%emt 0:00:06]} 12. Ne2 {[%emt 0:01:00]} O-O {[%emt 0:03:39]} 13. Bd5 {[%emt 0:03:20] Schwarz muss nun Bxc6 beachten. Das Läuferpaar ist gut.} (13. Nxd4 Rd8 14. Be3 Qe5 15. Bxf7+ Kxf7 16. Qb3+ Kg6 $17) 13... Rd8 {[%emt 0:06:00]} 14. O-O {[%emt 0:05:38]} h6 {[%emt 0:07:04]} 15. Bxf6 {[%emt 0:03:25]} (15. Bh4 {mit weiteren Verwicklungen.} g5 16. Bxc6 d3 17. Nc3) 15... Qxf6 {[%emt 0:00:05]} 16. Qb3 {[%emt 0:03:46]} Be6 {[%emt 0:07:25]} 17. Rad1 {[%emt 0:09:21]} Rd7 {[%emt 0:04:36]} 18. Qc4 {[%emt 0:03:33]} (18. Bxe6 $11 fxe6 19. f4) 18... Rad8 $17 {[%emt 0:03:24][%cal Re6d5]} 19. Nxd4 {[%emt 0:02:48]} (19. Bxe6 $1 $15 fxe6 (19... Qxe6 20. Qxe6 fxe6 21. Nf4 $11) 20. Ng3) 19... Bxd5 $19 {[%emt 0:03:46]} 20. exd5 {[%emt 0:00:05] [#]} Ne5 {[%emt 0:00:41]} ({Jedoch nicht} 20... Rxd5 21. Nxc6 bxc6 (21... Rxd1 22. Nxd8 Rxd8 23. Qc7 $15) 22. Rxd5 cxd5 (22... Rxd5 23. Qc2 $11) 23. Qc2 $15) 21. Qc2 {[%emt 0:20:08]} Rxd5 {[%emt 0:00:19]} 22. Nb3 $2 {[%emt 0:00:08] [#]} (22. f4) 22... Nxf3+ $1 {[%emt 0:01:45][%mdl 512]} 23. gxf3 {[%emt 0:00:36] [#] Rxd5 ist eine echte Drohung.} Rxd1 $1 {[%emt 0:00:06] Gewichteter Fehlerwert: Weiß=0.65/Schwarz=0.09 (makellos) .  Fehler:       	Weiß=3     	Schwarz=1     Ungenau:       	Weiß=4     	Schwarz=1     OK:         	Weiß=4     	Schwarz=9     Bester:       	---       	Schwarz=1     Brilliant:      	---       	Schwarz=1} 0-1

[Event "Fagernes Chess GM-Swiss 2024"]
[Site "Fagernes"]
[Date "2024.03.26"]
[Round "3.25"]
[White "Eliseev, Sergey"]
[Black "Brynell, Stellan"]
[Result "1-0"]
[ECO "C70"]
[WhiteElo "2131"]
[BlackElo "2406"]
[Annotator "TA"]
[PlyCount "77"]
[EventDate "2024.03.25"]
[EventType "swiss"]
[EventCountry "NOR"]
[SourceTitle "playchess.com"]
[Source "ChessBase"]
[SourceQuality "1"]
[TimeControl "40/6000+30:2400+30"]

{[%evp 9,77,1,19,0,4,-35,-22,-52,-25,-32,-29,-38,-41,-93,-95,-104,-101,-99,-107,-98,0,0,3,0,77,54,140,146,152,99,113,84,202,229,324,317,324,321,395,285,314,314,258,129,390,449,448,437,428,414,735,726,721,724,724,700,2012,1130,2380,2192,2231,2061,29986,29987,29987,29988,29995,29996,29996,29997]} 1. e4 {[%emt 0:04:14]} e5 {[%emt 0:00:08]} 2. Nf3 {[%emt 0:00:25]} Nc6 {[%emt 0:00:06]} 3. Bb5 {[%emt 0:00:07]} a6 {[%emt 0:00:11]} 4. Ba4 {[%emt 0:00:04]} Bc5 {[%emt 0:00:12]} 5. d3 {[%emt 0:05:14]} Nge7 {[%emt 0:03:10]} 6. Bg5 {[%emt 0:06:48]} h6 {[%emt 0:05:02]} 7. Bh4 {[%emt 0:00:13]} d6 {[%emt 0:07:54]} 8. Nc3 {[%emt 0:18:09] The position is equal.} g5 {[%emt 0:12:02]} 9. Bg3 {[%emt 0:03:49]} Bd7 {[%emt 0:02:34]} 10. h4 {[%emt 0:14:41]} g4 {[%emt 0:00:59]} 11. Nh2 {[%emt 0:00:41]} (11. Nd2 $15) 11... h5 $1 $17 {[%emt 0:01:22]} 12. f4 {[%emt 0:04:22] [#]} exf4 $1 {[%emt 0:09:32]} 13. Bxf4 {[%emt 0:00:02] [#]} Ng6 $1 {[%emt 0:00:08][%csl LRf4,LRh4]} 14. Qd2 {[%emt 0:03:36]} Nd4 {[%emt 0:09:31]} (14... Nxh4 $6 15. O-O-O Ng6 16. Rdf1 $14) ({Black should try} 14... b5 $17 {[%cal Og6f4] Strongly threatening ...Nxf4!} 15. Bb3 Qxh4+ (15... Nxf4 16. Qxf4 Be6 17. Bd5 $11) 16. g3 Qh3) 15. Bxd7+ $11 {[%emt 0:09:22]} Kxd7 {[%emt 0:02:31]} 16. O-O-O {[%emt 0:02:19]} Ne6 {[%emt 0:01:42]} (16... Nxh4 $2 17. Bg5 Qf8 18. Bxh4 $18) (16... Nxf4 $11 17. Qxf4 Qxh4) 17. Bg3 $16 {[%emt 0:03:43]} c6 {[%emt 0:01:11]} (17... Nxh4 $14 18. Rdf1 Ng6) 18. Ne2 {[%emt 0:02:26]} Nd4 {[%emt 0:04:45]} 19. Nxd4 {[%emt 0:03:38]} (19. Nf1 $142) 19... Bxd4 {[%emt 0:00:06]} 20. Qb4 {[%emt 0:00:13]} Be3+ {[%emt 0:03:06]} (20... Qb6 $16 21. Qxd6+ (21. Bxd6 Nxh4 22. g3 Ng6 $15) 21... Kc8) 21. Kb1 $18 {[%emt 0:00:02]} Kc7 {[%emt 0:00:51]} (21... a5 $142 22. Qxb7+ (22. Qxd6+ Ke8 $18) 22... Qc7 23. Qxc7+ Kxc7) 22. Rhf1 {[%emt 0:04:26]} Rh7 {[%emt 0:00:20]} 23. d4 {[%emt 0:06:32]} Qe7 {[%emt 0:07:39]} 24. Rd3 {[%emt 0:00:34]} a5 {[%emt 0:01:59]} 25. Qa3 {[%emt 0:02:30]} Bh6 {[%emt 0:00:49]} 26. c4 {[%emt 0:01:18]} ({Better is} 26. Rf5 $18 Bf8 27. Rxa5 Rxa5 28. Qxa5+ Kd7 29. Qa8 Qxe4 30. Qxb7+ Ke6 31. Rd1) 26... Bf8 $2 {[%emt 0:02:06][%mdl 8192] Loses the game.} (26... Kc8 $16) 27. c5 {[%emt 0:00:54]} Qxe4 {[%emt 0:04:38][%cal Of7f5]} 28. cxd6+ {[%emt 0:00:12]} Kd7 {[%emt 0:00:09][%cal Of7f5]} 29. Qb3 {[%emt 0:00:18]} b5 {[%emt 0:06:53]} (29... Rb8 $142 30. d5 (30. Rxf7+ Rxf7 31. Qxf7+ Ne7 $17) 30... a4) 30. d5 {[%emt 0:03:40]} (30. Rxf7+ $2 Rxf7 31. Qxf7+ Ne7 $17 (31... Be7 32. Kc2 $11)) 30... Rc8 {[%emt 0:02:08]} 31. dxc6+ {[%emt 0:01:00]} Rxc6 {[%emt 0:00:08]} 32. Qxb5 {[%emt 0:01:45] Re1 is the strong threat.} (32. Rxf7+ $2 {perishes.} Rxf7 33. Qxf7+ Ne7 $19) 32... Bh6 {[%emt 0:03:34]} 33. Ka1 {[%emt 0:03:20]} Qb4 {[%emt 0:06:39]} 34. Qf5+ {[%emt 0:00:54]} Kd8 {[%emt 0:00:11]} 35. Rb3 {[%emt 0:01:36]} (35. Qxh5 $2 {is the wrong capture.} Rc1+ (35... Bc1 $2 36. Rb3 $19) 36. Rxc1 Bxc1 $19) 35... Qc4 {[%emt 0:00:39]} 36. Rb8+ {[%emt 0:01:57] White mates.} (36. Qxh5 $2 {is a self mate.} Qc1+ 37. Rxc1 Rxc1#) 36... Rc8 {[%emt 0:00:06]} 37. Qf6+ {[%emt 0:02:12]} Ke8 {[%emt 0:00:25] [#]} 38. d7+ $1 {[%emt 0:00:21][%mdl 512]} Kxd7 {[%emt 0:00:08]} 39. Rd1+ {[%emt 0:00:02] Weighted Error Value: White=0.17 (very precise) /Black=0.69.  Loses game:     	---       	Black=1      Mistake:       	White=3     	Black=6      Inaccurate:     	White=2     	Black=1      OK:         	White=7     	Black=6      Best:        	White=6     	---        Strong:       	---       	Black=3} 1-0

[Event "Fagernes Chess GM-Swiss 2024"]
[Site "Fagernes"]
[Date "2024.03.26"]
[Round "3.26"]
[White "Fiskaaen, Martin Holten"]
[Black "Narva, Mai"]
[Result "0-1"]
[ECO "A43"]
[WhiteElo "2118"]
[BlackElo "2399"]
[Annotator "TA"]
[PlyCount "62"]
[EventDate "2024.03.25"]
[EventType "swiss"]
[EventCountry "NOR"]
[SourceTitle "playchess.com"]
[Source "ChessBase"]
[SourceQuality "1"]
[TimeControl "40/6000+30:2400+30"]

{[%evp 10,62,75,76,96,45,95,36,116,85,108,0,0,-32,-35,-41,-41,-81,-23,-33,-37,-64,-36,-36,-27,-59,-54,-94,-97,-103,-109,-64,-94,-150,-153,-162,-153,-140,-135,-130,-134,-389,-413,-514,-587,-610,-606,-617,-617,-593,-584,-695,-689,-688,-684]} 1. d4 {[%emt 2:38:02]} g6 {[%emt 0:01:31]} 2. c4 {[%emt 0:05:09]} Bg7 {[%emt 0:00:15]} 3. e4 {[%emt 0:01:21]} d6 {[%emt 0:00:22]} 4. Nc3 {[%emt 0:01:12]} c5 {[%emt 0:00:46]} 5. d5 {[%emt 0:03:15]} Bxc3+ {[%emt 0:00:29]} 6. bxc3 {[%emt 0:00:07]} e5 {[%emt 0:00:22]} 7. h4 {[%emt 0:15:43]} (7. Bd3 $16) 7... Qe7 {[%emt 0:01:03]} (7... f5 $1 $14) 8. Bd3 {[%emt 0:05:08]} (8. h5 $16) 8... Kd8 {[%emt 0:02:30]} (8... f5 $1 $14) 9. Ne2 {[%emt 0:02:57]} Kc7 {[%emt 0:02:50]} 10. Be3 {[%emt 0:07:02]} (10. h5 $16) 10... f5 $11 {[%emt 0:09:45]} 11. Bg5 {[%emt 0:06:21]} Qg7 {[%emt 0:09:56]} 12. Bd2 {[%emt 0:27:34]} Nf6 {[%emt 0:08:27]} 13. Qc2 {[%emt 0:04:22]} Re8 {[%emt 0:13:50]} ({Vorzuziehen ist} 13... fxe4 $17 14. Bxe4 Nxe4 15. Qxe4 Bf5) 14. f3 {[%emt 0:04:15]} Nbd7 {[%emt 0:05:17]} 15. O-O-O {[%emt 0:02:17]} Nb6 {[%emt 0:05:12]} 16. Ng3 {[%emt 0:05:58]} Rf8 {[%emt 0:12:37]} 17. Rdf1 {[%emt 0:00:54]} Bd7 {[%emt 0:03:56]} 18. exf5 {[%emt 0:03:58]} gxf5 {[%emt 0:00:36]} 19. Nxf5 {[%emt 0:00:16]} Bxf5 {[%emt 0:00:37]} 20. Bxf5 {[%emt 0:00:04]} Nxc4 {[%emt 0:01:56][%cal Of6h5]} 21. Be6 {[%emt 0:06:37]} ({Besser ist} 21. Rf2) 21... Nh5 $17 {[%emt 0:02:23][%cal Oh5g3] Weiss muss nun ...Ng3! beachten. Hervorragende Reitkunst.} ({Ein No Go ist} 21... Qxg2 $6 22. Rhg1 Qxd2+ 23. Qxd2 Nxd2 24. Rg7+ Kb8 25. Kxd2 $14) 22. Rhg1 {[%emt 0:01:38][%cal Og2g3]} Nxd2 {[%emt 0:06:18]} 23. Qxd2 {[%emt 0:00:11][%cal Og2g3]} Nf4 {[%emt 0:01:53]} 24. Bg4 {[%emt 0:02:39]} e4 {[%emt 0:01:18][%cal Oe4e3] Und jetzt ...e3! wäre schön. Schwarz steht aktiver.} 25. g3 $2 {[%emt 0:01:13][%mdl 8192] [#] Danach ist Weiß chancenlos.} (25. Be6 $17) 25... e3 $1 $19 {[%emt 0:01:04][%mdl 512]} 26. Qxe3 {[%emt 0:00:54]} (26. Qc2 Nxd5) 26... Rae8 {[%emt 0:00:51] Schwarz steht klar auf Gewinn.} (26... Nxd5 $2 27. Qd3 Nxc3 28. Rf2 $19) 27. Qd2 {[%emt 0:02:14]} Re2 {[%emt 0:00:42]} (27... Ne2+ 28. Kb2 b5 (28... Nxg1 $2 29. Rxg1 b5 30. Re1 $19) 29. Rg2 $19) 28. gxf4 {[%emt 0:00:28]} Rxd2 {[%emt 0:00:06]} 29. Kxd2 {[%emt 0:00:05]} Rxf4 {[%emt 0:00:35]} 30. Be6 {[%emt 0:01:09]} Qh6 {[%emt 0:00:24] [#] ( -> ...Rd4+)} 31. Kc2 {[%emt 0:00:16]} Rxh4 {[%emt 0:00:18] Gewichteter Fehlerwert: Weiß=0.52/Schwarz=0.12 (sehr präzise) .  Verlustzug:     	Weiß=1     	---        Fehler:       	Weiß=4     	Schwarz=3     Ungenau:       	Weiß=5     	Schwarz=1     OK:         	Weiß=3     	Schwarz=10    Bester:       	Weiß=1     	Schwarz=1} ({Nicht} 31... Qxh4 32. Rg7+ Kd8 33. Rd7+ Ke8 34. Rxb7 $11) 0-1

[Event "Fagernes Chess GM-Swiss 2024"]
[Site "Fagernes"]
[Date "2024.03.26"]
[Round "3.27"]
[White "Rounaiv Rana"]
[Black "Mihajlov, Sebastian"]
[Result "0-1"]
[ECO "E32"]
[WhiteElo "2099"]
[BlackElo "2373"]
[Annotator "RC"]
[PlyCount "78"]
[EventDate "2024.03.25"]
[EventType "swiss"]
[EventCountry "NOR"]
[SourceTitle "playchess.com"]
[Source "ChessBase"]
[SourceQuality "1"]
[TimeControl "40/6000+30:2400+30"]

1. d4 {[%emt 0:00:03]} Nf6 {[%emt 0:00:06]} 2. c4 {[%emt 0:00:06]} e6 {[%emt 0:00:44]} 3. Nc3 {[%emt 0:00:07]} Bb4 {[%emt 0:00:39]} 4. Qc2 {[%emt 0:00:06]} h6 {[%emt 0:00:45]} 5. e4 {[%emt 0:09:54]} c5 {[%emt 0:01:37]} 6. d5 {[%emt 0:04:54]} exd5 {[%emt 0:03:33]} 7. exd5 {[%emt 0:01:20]} b5 {[%emt 0:00:50]} 8. Be3 {[%emt 0:22:05]} O-O {[%emt 0:07:28]} 9. Bd3 {[%emt 0:14:09]} bxc4 {[%emt 0:03:27]} 10. Bxc4 {[%emt 0:00:14]} Bxc3+ {[%emt 0:11:06]} 11. Qxc3 {[%emt 0:00:33]} d6 {[%emt 0:00:43]} 12. Ne2 {[%emt 0:14:19]} Nbd7 {[%emt 0:06:17]} 13. O-O {[%emt 0:13:09]} Nb6 {[%emt 0:03:04]} 14. Qd3 {[%emt 0:01:59]} Re8 {[%emt 0:16:24]} 15. Nc3 {[%emt 0:08:22]} Ng4 {[%emt 0:14:30]} 16. Bf4 {[%emt 0:02:16]} Qf6 {[%emt 0:01:38]} 17. Bb5 {[%emt 0:04:44]} Qxf4 {[%emt 0:00:51]} 18. g3 {[%emt 0:00:14]} Qf5 {[%emt 0:01:18]} 19. Qxf5 {[%emt 0:00:19]} Bxf5 {[%emt 0:00:05]} 20. Bxe8 {[%emt 0:00:10]} Rxe8 {[%emt 0:00:02]} 21. Rfe1 {[%emt 0:00:47]} Kf8 {[%emt 0:03:16]} 22. Nb5 {[%emt 0:01:36]} Nc8 {[%emt 0:00:49]} 23. Rxe8+ {[%emt 0:01:53]} Kxe8 {[%emt 0:00:07]} 24. f3 {[%emt 0:03:49]} Nf6 {[%emt 0:00:13]} 25. Rd1 {[%emt 0:00:14]} Kd7 {[%emt 0:00:25]} 26. g4 {[%emt 0:00:20]} Bh7 {[%emt 0:00:12]} 27. Kf2 {[%emt 0:00:46]} a6 {[%emt 0:01:12]} 28. Nc3 {[%emt 0:00:08]} Nb6 {[%emt 0:00:06]} 29. b3 {[%emt 0:00:34]} Ne8 {[%emt 0:00:45]} 30. f4 {[%emt 0:03:07]} Nc7 {[%emt 0:01:07]} 31. g5 {[%emt 0:00:24]} Nb5 {[%emt 0:02:57]} 32. Nxb5 {[%emt 0:00:29]} axb5 {[%emt 0:00:07]} 33. gxh6 {[%emt 0:00:11]} gxh6 {[%emt 0:00:05]} 34. Ke3 {[%emt 0:00:14]} b4 {[%emt 0:00:28]} 35. h4 {[%emt 0:01:24]} Ke7 {[%emt 0:00:20]} 36. Kf3 {[%emt 0:01:15]} Bf5 {[%emt 0:00:27]} 37. Re1+ {[%emt 0:00:38]} Kf6 {[%emt 0:00:17]} 38. a3 {[%emt 0:01:25]} c4 {[%emt 0:01:28]} 39. axb4 {[%emt 0:00:47]} cxb3 {[%emt 0:00:06]} 0-1

[Event "Fagernes Chess GM-Swiss 2024"]
[Site "Fagernes"]
[Date "2024.03.26"]
[Round "3.28"]
[White "Oksendal, Martin"]
[Black "Kenneskog, Theodor"]
[Result "1/2-1/2"]
[ECO "B99"]
[WhiteElo "2086"]
[BlackElo "2358"]
[Annotator "RC"]
[PlyCount "43"]
[EventDate "2024.03.25"]
[EventType "swiss"]
[EventCountry "NOR"]
[SourceTitle "playchess.com"]
[Source "ChessBase"]
[SourceQuality "1"]
[TimeControl "40/6000+30:2400+30"]

1. e4 {[%emt 0:02:17]} c5 {[%emt 0:00:06]} 2. Nf3 {[%emt 0:00:42]} d6 {[%emt 0:00:05]} 3. d4 {[%emt 0:00:23]} cxd4 {[%emt 0:00:08]} 4. Nxd4 {[%emt 0:00:04]} Nf6 {[%emt 0:00:05]} 5. Nc3 {[%emt 0:00:03]} a6 {[%emt 0:00:26]} 6. Bg5 {[%emt 0:00:19]} e6 {[%emt 0:00:12]} 7. f4 {[%emt 0:00:05]} Be7 {[%emt 0:00:05]} 8. Qf3 {[%emt 0:00:04]} Qc7 {[%emt 0:00:07]} 9. O-O-O {[%emt 0:00:08]} Nbd7 {[%emt 0:00:06]} 10. g4 {[%emt 0:00:05]} h6 {[%emt 0:00:06]} 11. Bxf6 {[%emt 0:00:21]} Bxf6 {[%emt 0:00:06]} 12. h4 {[%emt 0:00:15]} Nb6 {[%emt 0:00:06]} 13. g5 {[%emt 0:00:23]} Bxd4 {[%emt 0:00:09]} 14. Rxd4 {[%emt 0:00:04]} Qc5 {[%emt 0:00:07]} 15. Qd3 {[%emt 0:00:28]} hxg5 {[%emt 0:03:45]} 16. b4 {[%emt 0:00:15]} Qc7 {[%emt 0:00:25]} 17. fxg5 {[%emt 0:00:06]} Bd7 {[%emt 0:10:43]} 18. Rxd6 {[%emt 0:00:20]} Nc8 {[%emt 0:00:04]} 19. Rd4 {[%emt 0:00:07]} Nb6 {[%emt 0:00:04]} 20. Rd6 {[%emt 0:00:22]} Nc8 {[%emt 0:00:20]} 21. Rd4 {[%emt 0:00:08]} Nb6 {[%emt 0:00:05]} 22. Rd6 {[%emt 0:00:12]} 1/2-1/2

[Event "Fagernes Chess GM-Swiss 2024"]
[Site "Fagernes"]
[Date "2024.03.26"]
[Round "3.29"]
[White "Havik, Victor"]
[Black "Carlsson, Ludvig"]
[Result "0-1"]
[ECO "D46"]
[WhiteElo "2078"]
[BlackElo "2350"]
[Annotator "RC"]
[PlyCount "58"]
[EventDate "2024.03.25"]
[EventType "swiss"]
[EventCountry "NOR"]
[SourceTitle "playchess.com"]
[Source "ChessBase"]
[SourceQuality "1"]
[TimeControl "40/6000+30:2400+30"]

1. d4 {[%emt 0:00:03]} d5 {[%emt 0:05:57]} 2. c4 {[%emt 0:00:21]} c6 {[%emt 0:00:09]} 3. Nc3 {[%emt 0:00:12]} Nf6 {[%emt 0:00:08]} 4. e3 {[%emt 0:00:14]} e6 {[%emt 0:00:06]} 5. Nf3 {[%emt 0:00:18]} Bd6 {[%emt 0:00:12]} 6. Bd3 {[%emt 0:00:35]} O-O {[%emt 0:00:09]} 7. O-O {[%emt 0:00:44]} Nbd7 {[%emt 0:00:05]} 8. e4 {[%emt 0:00:33]} dxc4 {[%emt 0:00:08]} 9. Bxc4 {[%emt 0:00:13]} e5 {[%emt 0:00:06]} 10. Be3 {[%emt 0:17:20]} Qe7 {[%emt 0:00:10]} 11. Re1 {[%emt 0:02:32]} exd4 {[%emt 0:07:03]} 12. Bxd4 {[%emt 0:05:21]} Ne5 {[%emt 0:00:37]} 13. Nxe5 {[%emt 0:05:06]} Bxe5 {[%emt 0:00:22]} 14. Bxe5 {[%emt 0:03:26]} Qxe5 {[%emt 0:00:08]} 15. h3 {[%emt 0:10:45]} Be6 {[%emt 0:17:19]} 16. Qb3 {[%emt 0:10:59]} Nh5 {[%emt 0:29:35]} 17. Bxe6 {[%emt 0:14:35]} fxe6 {[%emt 0:00:06]} 18. Re3 {[%emt 0:00:31]} Rf7 {[%emt 0:08:57]} 19. Rd1 {[%emt 0:05:07]} Raf8 {[%emt 0:01:40]} 20. Rd2 {[%emt 0:03:13]} Nf4 {[%emt 0:00:15]} 21. Qd1 {[%emt 0:06:25]} h5 {[%emt 0:05:23]} 22. Rg3 {[%emt 0:04:50]} Qf6 {[%emt 0:07:40]} 23. Rd7 {[%emt 0:04:34]} Rxd7 {[%emt 0:07:40]} 24. Qxd7 {[%emt 0:00:16]} b5 {[%emt 0:00:18]} 25. Qd2 {[%emt 0:09:19]} Qe5 {[%emt 0:04:10]} 26. h4 {[%emt 0:00:53]} b4 {[%emt 0:00:16]} 27. Nd1 {[%emt 0:00:58]} Qxe4 {[%emt 0:00:17]} 28. Ne3 {[%emt 0:01:17]} c5 {[%emt 0:03:06]} 29. Qd7 {[%emt 0:00:21]} Ne2+ {[%emt 0:00:11]} 0-1

[Event "Fagernes Chess GM-Swiss 2024"]
[Site "Fagernes"]
[Date "2024.03.26"]
[Round "3.30"]
[White "Haug, Havard"]
[Black "Sian, Shadi"]
[Result "1-0"]
[ECO "D00"]
[WhiteElo "2341"]
[BlackElo "2076"]
[Annotator "RC"]
[PlyCount "111"]
[EventDate "2024.03.25"]
[EventType "swiss"]
[EventCountry "NOR"]
[SourceTitle "playchess.com"]
[Source "ChessBase"]
[SourceQuality "1"]
[TimeControl "40/6000+30:2400+30"]

1. d4 {[%emt 0:00:09]} d5 {[%emt 0:03:00]} 2. Nc3 {[%emt 0:00:02]} c5 {[%emt 0:00:02]} 3. Bf4 {[%emt 0:04:14]} Nf6 {[%emt 0:00:38]} 4. e4 {[%emt 0:00:08]} dxe4 {[%emt 0:00:57]} 5. dxc5 {[%emt 0:00:06]} Qa5 {[%emt 0:11:10]} 6. Qd2 {[%emt 0:00:08]} Na6 {[%emt 0:09:31]} 7. Rd1 {[%emt 0:05:16]} Bd7 {[%emt 0:02:43]} 8. Bxa6 {[%emt 0:07:00]} Qxa6 {[%emt 0:00:15]} 9. Nge2 {[%emt 0:01:11]} Qc4 {[%emt 0:12:02]} 10. b3 {[%emt 0:05:53]} Qxc5 {[%emt 0:00:42]} 11. Nxe4 {[%emt 0:00:08]} Qc6 {[%emt 0:01:20]} 12. Nxf6+ {[%emt 0:00:27]} gxf6 {[%emt 0:01:38]} 13. O-O {[%emt 0:03:02]} e5 {[%emt 0:05:36]} 14. Be3 {[%emt 0:02:01]} Rg8 {[%emt 0:09:46]} 15. f3 {[%emt 0:02:42]} Bc5 {[%emt 0:09:38]} 16. Ng3 {[%emt 0:04:14]} Bxe3+ {[%emt 0:05:34]} 17. Qxe3 {[%emt 0:00:01]} Qb6 {[%emt 0:00:07]} 18. Qxb6 {[%emt 0:00:40]} axb6 {[%emt 0:00:02]} 19. Ne4 {[%emt 0:01:03]} Rg6 {[%emt 0:01:11]} 20. a4 {[%emt 0:00:26]} Ke7 {[%emt 0:04:33]} 21. Nc3 {[%emt 0:02:06]} Rc8 {[%emt 0:09:13]} 22. Nd5+ {[%emt 0:01:42]} Ke8 {[%emt 0:00:05]} 23. c4 {[%emt 0:04:21]} f5 {[%emt 0:04:02]} 24. f4 {[%emt 0:01:03]} e4 {[%emt 0:01:29]} 25. Rd4 {[%emt 0:00:33]} Rd6 {[%emt 0:09:23]} 26. Rfd1 {[%emt 0:00:47]} Kf8 {[%emt 0:01:04]} 27. Kf2 {[%emt 0:00:49]} Be6 {[%emt 0:01:39]} 28. Ne3 {[%emt 0:02:21]} Rxd4 {[%emt 0:02:47]} 29. Rxd4 {[%emt 0:00:01]} Rc6 {[%emt 0:02:06]} 30. Rd8+ {[%emt 0:00:11]} Ke7 {[%emt 0:00:24]} 31. Rb8 {[%emt 0:00:03]} Rc7 {[%emt 0:00:17]} 32. g4 {[%emt 0:00:05]} fxg4 {[%emt 0:00:21]} 33. f5 {[%emt 0:00:08]} Bc8 {[%emt 0:01:08]} 34. Nd5+ {[%emt 0:01:49]} Kd6 {[%emt 0:00:06]} 35. Nxc7 {[%emt 0:00:13]} Kxc7 {[%emt 0:00:01]} 36. Ra8 {[%emt 0:00:56]} Bxf5 {[%emt 0:00:04]} 37. Ke3 {[%emt 0:00:31]} h5 {[%emt 0:00:33]} 38. Re8 {[%emt 0:01:23]} Bg6 {[%emt 0:01:44]} 39. Re7+ {[%emt 0:00:14]} Kb8 {[%emt 0:01:56]} 40. Kf4 {[%emt 0:00:18]} Ka7 {[%emt 0:00:33]} 41. Re8 {[%emt 0:40:20]} Bh7 {[%emt 0:01:54]} 42. Rf8 {[%emt 0:00:00]} Bg6 {[%emt 0:00:12]} 43. Rh8 {[%emt 0:00:00]} b5 {[%emt 0:02:56]} 44. axb5 {[%emt 0:00:00]} Kb6 {[%emt 0:00:10]} 45. b4 {[%emt 0:00:00]} Kc7 {[%emt 0:00:03]} 46. c5 {[%emt 0:00:00]} b6 {[%emt 0:00:43]} 47. Re8 {[%emt 0:00:00]} h4 {[%emt 0:00:45]} 48. Rh8 {[%emt 0:00:00]} g3 {[%emt 0:00:18]} 49. hxg3 {[%emt 0:00:00]} hxg3 {[%emt 0:00:04]} 50. Kxg3 {[%emt 0:00:00]} e3 {[%emt 0:00:05]} 51. Kf3 {[%emt 0:00:00]} Bd3 {[%emt 0:00:06]} 52. Rh6 {[%emt 0:00:00]} bxc5 {[%emt 0:00:11]} 53. b6+ {[%emt 0:00:00]} Kb7 {[%emt 0:00:11]} 54. bxc5 {[%emt 0:00:00]} e2 {[%emt 0:00:04]} 55. Kf2 {[%emt 0:00:00]} Bc4 {[%emt 0:00:03]} 56. Rh4 {[%emt 0:00:00]} 1-0